bitfinex-derivatives/quotes_ETHF0:USTF0_20240830
["timestamp","ask_amount","ask_price","bid_price","bid_amount"]
[1724982669371,0.00593871,2527.0,2526.9,0.3811]
[1724982669765,0.00593871,2527.0,2526.9,0.77678]
[1724982671375,0.00593871,2527.0,2526.9,0.3811]
[1724982671576,0.00593871,2527.0,2526.9,0.7393]
[1724982671876,0.40159871,2527.0,2526.9,0.7393]
[1724982672068,0.40159871,2527.0,2526.7,1.39314768]
[1724982672262,0.40159871,2527.0,2526.7,1.0875]
[1724982672460,0.40159871,2527.0,2526.7,1.48321]
[1724982672966,0.40159871,2527.0,2526.7,1.0875]
[1724982673269,0.40159871,2527.0,2526.8,0.39569]
[1724982673270,0.00593871,2527.0,2526.8,0.39569]
[1724982673662,0.00593871,2527.0,2526.7,2.51674768]
[1724982674259,0.40160871,2527.0,2526.7,2.12104768]
[1724982674572,0.40160871,2527.0,2526.7,2.51675768]
[1724982674974,0.00593871,2527.0,2526.7,2.51675768]
[1724982676467,0.00593871,2527.0,2526.8,3.60349]
[1724982676776,0.00593871,2527.0,2526.9,0.39568]
[1724982683873,0.00593871,2527.0,2526.9,4.35328]
[1724982684079,0.00593871,2527.0,2526.9,5.38682768]
[1724982684470,0.00593871,2527.0,2526.9,6.33215839]
[1724982684976,0.00593871,2527.0,2526.9,7.36738879]
[1724982685375,0.00593871,2527.0,2526.9,7.36736295]
[1724982685772,0.00593871,2527.0,2526.9,6.33211928]
[1724982686465,0.00593871,2527.0,2526.9,7.36725938]
[1724982686665,0.00593871,2527.0,2526.9,6.33211928]
[1724982687470,0.00230577,2527.0,2526.9,7.88355778]
[1724982687681,0.3818,2527.5,2527.3,0.39561]
[1724982687879,0.3839,2527.6,2527.4,0.3849]
[1724982687880,0.77948,2527.6,2527.4,0.3849]
[1724982688076,6.6278,2527.8,2527.4,0.3849]
[1724982688077,3.5657,2527.8,2527.4,0.739]
[1724982688378,3.96124,2527.8,2527.5,0.76148]
[1724982688679,3.96124,2527.8,2527.6,0.39557]
[1724982688680,3.5657,2527.8,2527.6,0.39557]
[1724982689570,3.2078,2527.8,2527.6,0.39557]
[1724982689978,3.60334,2527.8,2527.5,0.76147]
[1724982690181,3.2078,2527.8,2527.4,41.539]
[1724982690482,0.39564,2527.2,2526.9,1.4306995]
[1724982690682,0.39562,2527.3,2526.9,0.76847]
[1724982690983,0.369,2527.2,2527.0,41.19565]
[1724982691180,0.39561,2527.4,2527.1,0.39565]
[1724982691383,0.76929,2527.5,2527.0,40.8]
[1724982691678,0.7483,2527.7,2527.3,0.3956]
[1724982691981,0.39556,2527.7,2527.4,1.1436]
[1724982692180,3.5815,2527.8,2527.5,0.77197]
[1724982692782,3.2078,2527.8,2527.6,0.39556]
[1724982692979,3.2078,2527.8,2527.7,0.39555]
[1724982693574,0.00593,2527.9,2527.7,0.39555]
[1724982693776,0.00593,2527.9,2527.8,0.3779]
[1724982695881,0.00593,2527.9,2527.8,3.98124]
[1724982696084,0.00593,2527.9,2527.8,4.34234]
[1724982696897,0.00593,2527.9,2527.8,8.29834]
[1724982699082,0.00593,2527.9,2527.8,14.29834]
[1724982699385,3.2078,2528.7,2527.8,14.29834]
[1724982699386,0.39544,2528.4,2528.0,0.39551]
[1724982699586,1.49383,2528.5,2528.1,0.76168]
[1724982699787,1.49383,2528.5,2528.2,41.518]
[1724982699988,1.49383,2528.5,2528.2,41.91347]
[1724982700184,0.7363,2528.5,2528.2,41.518]
[1724982700481,0.3954,2528.7,2528.4,0.39544]
[1724982701289,1.48789,2528.8,2528.5,0.39542]
[1724982701685,1.48789,2528.8,2528.6,0.3625]
[1724982703286,1.0925,2528.8,2528.6,0.75791]
[1724982703486,1.48788,2528.8,2528.6,0.75791]
[1724982703681,1.48788,2528.8,2528.6,0.3625]
[1724982704691,1.48788,2528.8,2528.6,0.7355]
[1724982704894,1.26526909,2529.2,2528.6,1.13091]
[1724982705084,1.1082,2529.0,2528.6,1.13091]
[1724982705287,0.39538,2528.8,2528.6,0.7355]
[1724982706097,0.3954,2528.7,2528.4,3.60323]
[1724982706392,1.1082,2529.0,2528.4,3.5839]
[1724982706393,0.39543,2528.5,2528.4,3.5839]
[1724982706585,0.7585,2528.6,2528.4,3.5839]
[1724982706784,0.3877,2528.5,2528.4,3.5839]
[1724982707394,0.78313,2528.5,2528.2,41.19547]
[1724982707599,0.78313,2528.5,2528.3,0.39546]
[1724982707600,0.3877,2528.5,2528.3,0.39546]
[1724982707789,0.3877,2528.5,2528.4,0.39544]
[1724982708296,0.3877,2528.5,2528.4,4.35064]
[1724982708595,0.3954,2528.7,2528.4,4.35064]
[1724982708795,0.3954,2528.7,2528.3,4.5399]
[1724982708796,0.78309,2528.8,2528.5,0.39542]
[1724982709197,0.78309,2528.8,2528.4,3.2078]
[1724982709498,0.7514,2528.9,2528.6,0.39541]
[1724982709499,1.14678,2528.9,2528.6,0.39541]
[1724982709716,0.39538,2528.8,2528.7,0.3675]
[1724982709998,1.14678,2528.9,2528.7,0.76289]
[1724982710193,0.39537,2528.9,2528.7,0.76289]
[1724982710382,0.39537,2528.9,2528.8,0.7471]
[1724982711696,0.39537,2528.9,2528.8,0.3668]
[1724982712088,0.75786,2529.0,2528.7,0.3675]
[1724982712284,0.75786,2529.0,2528.8,0.39538]
[1724982712694,0.75786,2529.0,2528.7,1.13779]
[1724982713196,0.3625,2529.0,2528.8,0.39537]
[1724982714795,0.3625,2529.0,2528.9,0.39536]
[1724982714991,0.75785,2529.0,2528.8,0.39537]
[1724982715194,0.3625,2529.0,2528.8,0.39537]
[1724982715389,0.3625,2529.0,2528.9,0.39536]
[1724982715893,0.39535,2529.1,2528.9,0.39536]
[1724982716197,0.39535,2529.0,2528.8,0.39537]
[1724982716697,0.39534,2529.1,2528.9,0.39536]
[1724982717100,0.39533,2529.1,2528.9,0.39536]
[1724982717899,1.50563,2529.2,2528.8,3.42]
[1724982718198,1.50563,2529.2,2528.9,0.39536]
[1724982718903,0.39533,2529.1,2528.9,0.39535]
[1724982719493,0.39535,2529.0,2528.8,3.81537]
[1724982719703,0.39534,2529.1,2528.9,0.39536]
[1724982720497,0.39534,2529.1,2528.8,3.81537]
[1724982721096,0.39535,2529.0,2528.8,3.81537]
[1724982721896,0.98838,2529.0,2528.5,4.107]
[1724982722099,0.39541,2528.6,2528.5,4.107]
[1724982722296,0.3954,2528.7,2528.5,4.50243]
[1724982722499,0.39539,2528.8,2528.5,4.50243]
[1724982722693,0.39535,2529.0,2528.8,0.39538]
[1724982722997,0.39535,2529.0,2528.6,3.803]
[1724982722998,1.1103,2529.2,2528.7,0.39539]
[1724982723199,0.39537,2528.9,2528.7,0.39539]
[1724982723396,0.39539,2528.8,2528.6,3.803]
[1724982723597,0.39535,2529.0,2528.6,3.803]
[1724982723805,0.98834,2529.1,2528.6,3.803]
[1724982723995,0.39539,2528.8,2528.6,3.803]
[1724982724392,0.3954,2528.7,2528.6,3.803]
[1724982724720,0.39541,2528.6,2528.5,4.107]
[1724982724905,5.20809863,2529.1,2528.5,4.107]
[1724982725100,5.20809863,2529.1,2528.6,0.3792]
[1724982725101,0.98837,2529.1,2528.6,0.3792]
[1724982725298,0.39539,2528.8,2528.6,0.3792]
[1724982725798,0.39539,2528.8,2528.6,0.77461]
[1724982726104,0.39539,2528.8,2528.6,0.3792]
[1724982726495,0.98837,2529.1,2528.6,0.3792]
[1724982726701,0.39536,2529.0,2528.7,0.39539]
[1724982726998,0.39536,2529.0,2528.7,0.76279]
[1724982727201,0.39536,2529.0,2528.8,0.359]
[1724982727598,0.39536,2528.9,2528.8,0.359]
[1724982727804,0.39536,2528.9,2528.7,0.39539]
[1724982728109,0.39536,2529.0,2528.7,0.77019]
[1724982728309,0.39537,2528.9,2528.7,0.77019]
[1724982728606,1.1103,2529.2,2528.7,0.3748]
[1724982728901,0.78488,2528.8,2528.7,0.3748]
[1724982729104,0.78488,2528.8,2528.6,4.1946]
[1724982729410,0.7242,2528.7,2528.6,4.1946]
[1724982729609,0.7242,2528.7,2528.6,3.7992]
[1724982729803,0.39541,2528.6,2528.5,4.107]
[1724982733606,8.54695,2528.6,2528.5,4.107]
[1724982733813,0.39546,2528.3,2528.2,40.8]
[1724982734110,0.39547,2528.2,2528.1,0.00593871]
[1724982734421,0.98873,2528.1,2527.4,8.96740955]
[1724982734605,0.39558,2527.6,2527.5,40.8]
[1724982735205,0.39558,2527.6,2527.3,4.107]
[1724982735206,0.3956,2527.4,2527.3,4.107]
[1724982735406,3.9568,2527.6,2527.1,0.00593871]
[1724982735407,0.39562,2527.3,2527.1,0.00593871]
[1724982735905,1.1195,2527.5,2527.1,0.00593871]
[1724982736312,0.39561,2527.4,2527.1,40.80593871]
[1724982736522,0.39562,2527.3,2527.1,40.80593871]
[1724982737316,1.1195,2527.5,2527.2,3.42]
[1724982737317,0.39559,2527.5,2527.2,3.42]
[1724982737508,0.39559,2527.5,2527.3,0.3783]
[1724982737811,0.39559,2527.5,2527.4,0.3783]
[1724982738920,0.00593871,2527.6,2527.4,0.3783]
[1724982738921,0.00593871,2527.6,2527.4,0.7739]
[1724982739121,0.00593871,2527.6,2527.4,1.1568]
[1724982739811,0.00593871,2527.6,2527.4,0.7612]
[1724982740202,0.00593871,2527.6,2527.4,1.1568]
[1724982741111,0.40150871,2527.6,2527.4,0.7612]
[1724982741511,0.00593871,2527.6,2527.4,1.1568]
[1724982742107,0.39558,2527.5,2527.2,3.81562]
[1724982742313,0.76288,2527.5,2527.2,3.81562]
[1724982742512,0.3673,2527.5,2527.3,0.39561]
[1724982742714,1.13821871,2527.6,2527.2,3.42]
[1724982743018,0.00593871,2527.6,2527.5,0.39558]
[1724982743607,0.00593871,2527.6,2527.5,10.35238]
[1724982744017,0.00593871,2527.6,2527.5,4.35238]
[1724982744212,0.00593871,2527.6,2527.4,3.42]
[1724982744417,0.00593871,2527.6,2527.5,0.3575]
[1724982744923,0.00593871,2527.6,2527.5,0.7275]
[1724982745323,0.00593871,2527.6,2527.5,1.12308]
[1724982746717,0.00593871,2527.6,2527.5,5.07988]
[1724982747118,0.00593871,2527.6,2527.5,5.43588]
[1724982749723,0.3955,2528.1,2527.9,0.39552]
[1724982749923,0.3955,2528.1,2528.0,0.3518]
[1724982754523,0.39551,2528.0,2527.8,0.39553]
[1724982754827,0.39552,2527.9,2527.7,0.75524]
[1724982755017,0.39554,2527.8,2527.7,0.3597]
[1724982756224,0.39554,2527.8,2527.6,0.7257]
[1724982756225,0.39557,2527.7,2527.4,3.81559]
[1724982757028,0.39557,2527.7,2527.5,0.39558]
[1724982760729,0.39555,2527.8,2527.6,0.39557]
[1724982760928,0.39555,2527.8,2527.7,1.1224]
[1724982761829,0.39555,2527.8,2527.7,0.3587]
[1724982764137,0.39555,2527.8,2527.7,0.75425]
[1724982764331,0.39555,2527.8,2527.7,0.3587]
[1724982773851,0.39555,2527.8,2527.7,0.75425]
[1724982774247,3.2078,2528.2,2527.7,5.7347]
[1724982774442,1.1179,2528.4,2528.0,1.42]
[1724982774641,1.51335,2528.4,2528.1,1.15358]
[1724982775043,0.39546,2528.3,2528.1,0.7581]
[1724982775251,0.39547,2528.2,2528.1,0.7581]
[1724982775441,1.1179,2528.4,2528.1,0.7581]
[1724982775442,0.39547,2528.3,2528.1,0.7581]
[1724982778349,1.51335,2528.4,2528.1,1.15359]
[1724982779059,0.39546,2528.3,2528.2,40.8]
[1724982780468,4.35066,2528.3,2528.2,40.8]
[1724982780666,0.3955,2528.1,2527.8,5.01746041]
[1724982780962,0.3534,2528.0,2527.9,0.39552]
[1724982781166,0.3534,2528.0,2527.9,41.19552]
[1724982781859,0.74891,2528.0,2527.9,40.8]
[1724982782057,0.39554,2527.8,2527.7,5.49153041]
[1724982782251,0.39554,2527.8,2527.7,4.4613]
[1724982782456,0.39554,2527.8,2527.7,45.2613]
[1724982783365,0.7437,2527.9,2527.7,45.2613]
[1724982783366,1.13923,2527.9,2527.7,45.2613]
[1724982783959,0.39554,2527.8,2527.7,45.2613]
[1724982784981,19.10273885,2527.8,2527.7,4.09282552]
[1724982785182,0.39561,2527.3,2527.1,1.03616912]
[1724982785377,0.39563,2527.2,2527.1,0.00593871]
[1724982785586,1.11243,2527.2,2527.1,0.00593871]
[1724982785878,5.06923,2527.2,2527.1,0.00593871]
[1724982786476,11.06923,2527.2,2527.1,0.00593871]
[1724982786684,15.61578966,2527.2,2527.1,0.00593871]
[1724982787777,9.61578966,2527.2,2527.1,0.00593871]
[1724982790489,20.02486966,2527.2,2527.1,0.00593871]
[1724982793593,20.3063064,2527.2,2527.1,0.00593871]
[1724982803892,14.3063064,2527.2,2527.1,0.00593871]
[1724982804100,12.3163064,2527.2,2527.1,0.00593871]
[1724982804404,11.31806966,2527.2,2527.1,0.00593871]
[1724982804709,10.32898966,2527.2,2527.1,0.00593871]
[1724982805004,11.31806966,2527.2,2527.1,0.00593871]
[1724982816015,18.30714966,2527.2,2527.1,8.71e-06]
[1724982816216,18.30714966,2527.2,2526.5,0.3546]
[1724982816217,0.39572,2526.6,2526.5,0.3546]
[1724982816516,1.82572,2526.6,2526.5,0.3546]
[1724982816709,2.81504,2526.6,2526.5,0.3546]
[1724982817115,11.33212,2526.6,2526.5,0.3546]
[1724982817514,1.38516,2526.4,2526.3,0.00593871]
[1724982817817,6.02296,2526.4,2526.3,0.00593871]
[1724982818007,14.31919226,2526.4,2526.3,0.00593871]
[1724982818503,13.32979226,2526.4,2526.3,0.00593871]
[1724982819017,14.31919226,2526.4,2526.3,0.00593871]
[1724982820313,13.32979226,2526.4,2526.3,0.00593871]
[1724982821611,10.12199226,2526.4,2526.3,0.00593871]
[1724982821820,13.32979226,2526.4,2526.3,0.00593871]
[1724982823716,14.31919226,2526.4,2526.3,0.00593871]
[1724982830021,11.11139226,2526.4,2526.3,0.00593871]
[1724982830222,14.31919226,2526.4,2526.3,0.00593871]
[1724982833229,11.11139226,2526.4,2526.3,0.00593871]
[1724982833724,14.31919226,2526.4,2526.3,0.00593871]
[1724982833922,11.11139226,2526.4,2526.3,0.00593871]
[1724982834122,14.31919226,2526.4,2526.3,0.00593871]
[1724982835322,11.11139226,2526.4,2526.3,0.00593871]
[1724982835522,14.31919226,2526.4,2526.3,0.00593871]
[1724982837631,15.30859226,2526.4,2526.3,0.00593871]
[1724982837835,1.82582,2526.0,2525.9,1.1192]
[1724982840025,2.81537,2526.0,2525.9,1.1192]
[1724982840420,0.39585,2525.8,2525.7,0.00593871]
[1724982840630,6.02328,2525.8,2525.7,0.00593871]
[1724982841338,10.35507293,2525.8,2525.7,0.00593871]
[1724982844333,9.36544293,2525.8,2525.7,0.00593871]
[1724982846434,10.35507293,2525.8,2525.7,0.00593871]
[1724982847436,7.53959293,2525.8,2525.7,0.00593871]
[1724982847633,3.2078,2525.8,2525.7,3.96513871]
[1724982848038,3.2078,2525.8,2525.7,5.12243871]
[1724982850242,3.60365,2525.8,2525.7,5.12243871]
[1724982850447,0.39585,2525.8,2525.7,5.12243871]
[1724982851046,1.82584,2525.9,2525.7,5.12243871]
[1724982851839,1.82584,2525.9,2525.7,5.51829871]
[1724982852038,1.82584,2525.9,2525.7,5.12243871]
[1724982853444,1.82584,2525.9,2525.7,5.51829871]
[1724982853748,1.82584,2525.9,2525.7,5.12243871]
[1724982854247,1.43,2525.9,2525.7,5.51829871]
[1724982854636,1.43,2525.9,2525.8,0.39585]
[1724982854839,0.00593871,2526.0,2525.8,0.39585]
[1724982855447,0.00593871,2526.0,2525.9,0.39583]
[1724982856640,0.00593871,2526.0,2525.9,4.35503]
[1724982857347,0.00593871,2526.0,2525.9,10.35503]
[1724982858453,0.39574,2526.6,2525.9,12.37879]
[1724982858645,5.03352,2526.7,2526.1,4.6378]
[1724982858843,0.7462,2526.9,2526.2,0.746]
[1724982859044,1.43,2526.8,2526.6,0.39571]
[1724982859348,1.43,2526.8,2526.7,0.7555]
[1724982859546,1.82569,2526.8,2526.7,0.7555]
[1724982859949,1.82569,2526.8,2526.7,0.375]
[1724982860251,0.39574,2526.5,2526.4,0.3805]
[1724982860544,2.41924,2526.8,2526.4,1.15126]
[1724982860545,1.82573,2526.6,2526.4,1.15126]
[1724982860748,1.82573,2526.6,2526.4,0.7555]
[1724982860952,1.82573,2526.6,2526.4,4.7139]
[1724982861654,1.82572,2526.7,2526.5,0.39574]
[1724982861950,1.82572,2526.7,2526.6,0.3832]
[1724982870159,4.34968,2526.9,2526.7,0.39571]
[1724982870357,3.2078,2526.9,2526.8,0.39569]
[1724982870549,3.2078,2526.9,2526.8,5.09519]
[1724982870859,3.2078,2526.9,2526.8,45.89519]
[1724982871456,3.2078,2526.9,2526.8,51.89519]
[1724982871656,3.2078,2526.9,2526.8,45.89519]
[1724982872048,0.00593871,2527.0,2526.8,51.89519]
[1724982872248,0.00593871,2527.0,2526.9,3.9576]
[1724982875545,0.00593871,2527.0,2526.9,4.35328]
[1724982875751,0.00593871,2527.0,2526.9,10.35328]
[1724982875948,0.00593871,2527.0,2526.9,11.78328]
[1724982878358,2.19138,2527.6,2527.3,0.3956]
[1724982878562,0.39558,2527.5,2527.3,0.3956]
[1724982879966,2.19138,2527.6,2527.3,0.3956]
[1724982880155,1.7958,2527.6,2527.3,0.3956]
[1724982880364,0.39558,2527.5,2527.3,0.3956]
[1724982884159,0.3956,2527.4,2527.2,1.15293]
[1724982884567,0.39561,2527.3,2527.2,0.7573]
[1724982884768,1.14001,2527.3,2527.2,0.3823]
[1724982886876,1.8256,2527.4,2527.2,4.3391]
[1724982887077,0.3956,2527.4,2527.2,0.3823]
[1724982887976,0.39561,2527.3,2527.2,0.3823]
[1724982888866,0.39561,2527.3,2527.2,4.3391]
[1724982889282,0.39561,2527.3,2527.2,0.3823]
[1724982909693,0.39563,2527.2,2527.1,0.00593871]
[1724982909883,6.38231,2527.2,2527.1,0.00593871]
[1724982910201,0.98912,2527.1,2526.4,0.3591]
[1724982910494,0.39574,2526.5,2526.4,0.7481]
[1724982910890,0.39574,2526.5,2526.4,4.7065]
[1724982912098,0.00593871,2526.7,2526.5,0.39573]
[1724982912307,0.00593871,2526.7,2526.6,1.82572]
[1724982913786,0.00593871,2526.7,2526.4,6.41613041]
[1724982913991,0.76763871,2526.7,2526.4,0.389]
[1724982914189,0.39574,2526.5,2526.4,0.389]
[1724982914588,0.39574,2526.5,2526.4,4.3474]
[1724982914990,0.3522,2526.6,2526.4,4.3474]
[1724982915190,0.3522,2526.6,2526.4,0.389]
[1724982916089,0.39574,2526.5,2526.4,0.389]
[1724982919416,0.39576,2526.4,2526.2,1.03616912]
[1724982919708,0.39577,2526.3,2526.2,0.00593871]
[1724982919902,4.99,2526.6,2526.2,0.00593871]
[1724982920104,0.39577,2526.3,2526.2,0.00593871]
[1724982934312,11.04403342,2526.3,2526.2,0.00593871]
[1724982937107,11.77493342,2526.3,2526.2,0.00593871]
[1724982944616,4.63042342,2526.3,2526.2,0.00593871]
[1724982944927,0.39576,2526.4,2526.2,0.00593871]
[1724982945118,0.39576,2526.4,2526.2,1.43593871]
[1724982947421,0.39576,2526.4,2526.2,1.83172871]
[1724982947820,0.39576,2526.4,2526.2,1.43593871]
[1724982948626,0.39577,2526.3,2526.2,0.00593871]
[1724982950520,0.39577,2526.4,2526.2,0.00593871]
[1724982951227,0.39577,2526.4,2526.2,40.80593871]
[1724982951622,0.39577,2526.4,2526.2,41.20171871]
[1724982952333,2.1493,2526.6,2526.3,0.39577]
[1724982952334,0.39575,2526.5,2526.3,0.39577]
[1724982952523,0.39575,2526.5,2526.4,0.3843]
[1724982957427,0.00593871,2526.7,2526.4,0.3843]
[1724982957739,0.00593871,2526.7,2526.6,1.82572]
[1724982958037,0.00593871,2526.7,2526.6,2.85595041]
[1724982958251,0.00593871,2526.7,2526.6,6.81355041]
[1724982958631,0.00593871,2526.7,2526.6,5.3876]
[1724982958830,0.40164871,2526.7,2526.6,3.9576]
[1724982959142,0.39572,2526.6,2526.5,41.5243]
[1724982959435,0.40165871,2526.7,2526.5,41.5243]
[1724982959629,0.40165871,2526.7,2526.5,45.4819]
[1724982961136,0.40165871,2526.7,2526.5,41.5243]
[1724982961537,0.39572,2526.6,2526.5,0.7243]
[1724982962136,1.82572,2526.6,2526.5,0.7243]
[1724982964630,0.39575,2526.5,2526.2,41.83616912]
[1724982964830,1.49235,2526.5,2526.2,41.17353871]
[1724982966741,0.39576,2526.4,2526.2,41.17353871]
[1724982967134,0.39576,2526.4,2526.2,45.13193871]
[1724982967326,1.49235,2526.5,2526.2,45.13193871]
[1724982967530,1.49235,2526.5,2526.2,42.59955912]
[1724982967737,1.49235,2526.5,2526.2,44.02955912]
[1724982968040,0.39576,2526.4,2526.2,44.02955912]
[1724982968446,0.39576,2526.4,2526.2,47.98795912]
[1724982969642,0.39577,2526.3,2526.2,0.37353871]
[1724982970141,0.39577,2526.3,2526.2,41.17353871]
[1724982972735,15.55872682,2526.3,2526.2,0.00593871]
[1724982973146,15.92062682,2526.3,2526.2,0.00593871]
[1724982974849,8.93118682,2526.3,2526.2,0.00593871]
[1724982976741,8.53541682,2526.3,2526.2,0.00593871]
[1724982976938,5.3875,2526.5,2526.2,0.00593871]
[1724982977151,0.39577,2526.3,2526.2,0.00593871]
[1724982984455,1.82575,2526.5,2526.2,4.36012871]
[1724982984753,3.60352,2526.6,2526.4,0.39576]
[1724982984943,3.60352,2526.6,2526.3,0.3798]
[1724982984944,3.2078,2526.6,2526.5,1.14824]
[1724982985149,3.2078,2526.6,2526.5,0.7525]
[1724982985357,3.2078,2526.6,2526.5,1.14824]
[1724982986047,3.2078,2526.6,2526.5,0.7525]
[1724982986852,0.39572,2526.6,2526.5,0.7525]
[1724982989953,0.00593871,2526.7,2526.5,0.7525]
[1724982990155,0.00593871,2526.7,2526.6,0.75552]
[1724982999659,0.40164871,2526.7,2526.6,0.3598]
[1724983000052,0.78714871,2526.7,2526.6,0.3598]
[1724983002057,0.39143871,2526.7,2526.6,0.3598]
[1724983002558,0.78714871,2526.7,2526.6,0.3598]
[1724983002853,0.00593871,2526.7,2526.6,0.3598]
[1724983004863,0.40164871,2526.7,2526.6,0.3598]
[1724983005458,0.40164871,2526.7,2526.5,1.14824]
[1724983005459,0.39572,2526.6,2526.5,0.3845]
[1724983005763,0.39572,2526.6,2526.3,4.23803041]
[1724983005764,0.39574,2526.5,2526.4,0.3685]
[1724983005966,0.75974,2526.5,2526.4,0.3685]
[1724983017968,0.364,2526.5,2526.2,1.41016912]
[1724983018177,0.364,2526.5,2526.2,0.00593871]
[1724983018178,0.39577,2526.3,2526.2,0.00593871]
[1724983018362,1.82577,2526.3,2526.2,0.00593871]
[1724983018870,10.32218606,2526.3,2526.2,0.00593871]
[1724983019172,11.31162606,2526.3,2526.2,0.00593871]
[1724983019370,10.32218606,2526.3,2526.2,0.00593871]
[1724983019671,0.39577,2526.3,2526.2,0.00593871]
[1724983020068,0.78457,2526.3,2526.2,0.00593871]
[1724983020271,4.74297,2526.3,2526.2,0.00593871]
[1724983021272,0.78457,2526.3,2526.2,0.00593871]
[1724983025773,1.77401,2526.3,2526.2,0.00593871]
[1724983028674,5.73241,2526.3,2526.2,0.00593871]
[1724983029182,10.16076575,2526.3,2526.2,0.00593871]
[1724983029387,17.15020575,2526.3,2526.2,0.00593871]
[1724983029987,17.15020575,2526.3,2526.2,8.71e-06]
[1724983030380,18.58020575,2526.3,2526.2,8.71e-06]
[1724983030683,11.59076575,2526.3,2526.2,8.71e-06]
[1724983037796,10.60132575,2526.3,2526.2,8.71e-06]
[1724983039284,6.25412575,2526.3,2526.2,8.71e-06]
[1724983043102,1.82577,2526.3,2526.2,8.71e-06]
[1724983045698,5.78417,2526.3,2526.2,8.71e-06]
[1724983045900,10.17170909,2526.3,2526.2,8.71e-06]
[1724983052699,11.16114909,2526.3,2526.2,8.71e-06]
[1724983054104,18.15058909,2526.3,2526.2,8.71e-06]
[1724983058504,21.35838909,2526.3,2526.2,8.71e-06]
[1724983058905,15.35838909,2526.3,2526.2,8.71e-06]
[1724983059303,0.39583,2525.9,2525.8,0.3576]
[1724983059498,5.03363,2525.9,2525.8,0.3576]
[1724983059706,6.02322,2525.9,2525.8,0.3576]
[1724983060414,0.39588,2525.6,2525.5,40.8]
[1724983060609,0.3959,2525.5,2525.4,0.3695]
[1724983060817,1.8259,2525.5,2525.4,0.3695]
[1724983061003,5.98188939,2525.5,2525.4,0.3695]
[1724983061415,5.98188939,2525.5,2525.3,0.715]
[1724983061416,0.39591,2525.4,2525.3,0.715]
[1724983061609,9.91418939,2525.5,2525.2,0.37543871]
[1724983061610,0.39593,2525.3,2525.2,0.37543871]
[1724983061807,1.82593,2525.3,2525.2,0.37543871]
[1724983062611,0.39593,2525.4,2525.2,0.37543871]
[1724983062914,4.87772634,2525.4,2525.3,0.3795]
[1724983063216,0.39593,2525.4,2525.3,0.3795]
[1724983065515,3.60373,2525.4,2525.3,0.3795]
[1724983068218,0.39591,2525.4,2525.3,4.3395]
[1724983069716,0.39591,2525.4,2525.3,0.3795]
[1724983077718,0.39591,2525.4,2525.3,41.1795]
[1724983079120,0.3959,2525.5,2525.3,41.1795]
[1724983079314,0.3959,2525.5,2525.4,0.3535]
[1724983079513,4.98439526,2525.5,2525.4,0.3535]
[1724983079720,4.58849526,2525.5,2525.4,0.3535]
[1724983079919,4.98439526,2525.5,2525.4,0.3535]
[1724983080224,4.58849526,2525.5,2525.4,0.3535]
[1724983080920,4.98439526,2525.5,2525.4,0.3535]
[1724983082417,0.3959,2525.5,2525.4,0.3535]
[1724983084124,0.39591,2525.4,2525.3,0.3795]
[1724983085125,0.39591,2525.4,2525.3,4.3395]
[1724983085317,0.39591,2525.4,2525.3,0.3795]
[1724983085522,3.60371,2525.4,2525.3,0.3795]
[1724983085717,0.39591,2525.4,2525.3,0.3795]
[1724983091935,0.3959,2525.5,2525.3,0.3795]
[1724983094727,0.39591,2525.4,2525.3,0.3795]
[1724983096429,0.39591,2525.5,2525.3,0.3795]
[1724983096635,0.39587,2525.7,2525.5,0.39589]
[1724983096940,3.60366,2525.8,2525.6,0.7254]
[1724983097234,0.39587,2525.7,2525.6,0.7254]
[1724983097736,0.39587,2525.7,2525.6,4.6846]
[1724983099030,0.78017,2525.7,2525.6,4.6846]
[1724983102335,0.39591,2525.5,2525.3,1.03023041]
[1724983102535,0.39591,2525.5,2525.4,0.7423]
[1724983103930,0.39591,2525.5,2525.4,0.3772]
[1724983106147,3.2078,2525.8,2525.4,4.73311]
[1724983106354,0.39587,2525.7,2525.5,0.39589]
[1724983106741,0.39587,2525.7,2525.5,4.35509]
[1724983106945,0.39587,2525.7,2525.5,3.9592]
[1724983107244,0.39588,2525.6,2525.5,3.9592]
[1724983107455,0.39588,2525.6,2525.5,0.3959]
[1724983107749,0.39588,2525.6,2525.5,4.3551]
[1724983108944,0.39588,2525.7,2525.5,4.3551]
[1724983109144,0.39588,2525.7,2525.5,0.3959]
[1724983109345,0.39588,2525.7,2525.5,4.3551]
[1724983110240,3.5952,2526.1,2525.8,0.39584]
[1724983110447,0.98947,2526.3,2525.8,0.39584]
[1724983110448,3.15807,2526.3,2525.9,0.76]
[1724983110641,0.39581,2526.1,2525.9,0.76]
[1724983110839,0.39582,2526.0,2525.9,0.76]
[1724983111251,0.39582,2526.0,2525.9,4.7192]
[1724983112156,1.43,2526.1,2525.9,4.7192]
[1724983112157,1.82581,2526.1,2525.9,4.7192]
[1724983112453,1.82581,2526.1,2525.9,0.76]
[1724983112843,1.82581,2526.1,2525.9,1.15583]
[1724983113151,1.43,2526.1,2525.9,1.15583]
[1724983113343,2.56439,2526.3,2526.0,0.39582]
[1724983113543,2.19329,2526.3,2526.0,0.39582]
[1724983114346,0.39579,2526.2,2525.9,1.15582]
[1724983114946,0.39579,2526.2,2526.0,0.39582]
[1724983115147,0.39579,2526.2,2526.1,0.3548]
[1724983116350,2.19328,2526.3,2526.1,0.3548]
[1724983116550,2.19328,2526.3,2526.1,0.7506]
[1724983116846,5.0126,2526.4,2526.2,0.76929]
[1724983117047,3.2078,2526.4,2526.3,0.363]
[1724983117260,0.7417,2526.6,2526.3,0.363]
[1724983117552,0.00593871,2526.7,2526.6,0.39572]
[1724983117742,0.00593871,2526.7,2526.5,0.39573]
[1724983117944,1.13865871,2526.7,2526.4,41.19575]
[1724983118250,1.13865871,2526.7,2526.5,0.39574]